bitfinex/quotes_SOLUSD_20251019
["timestamp","ask_amount","ask_price","bid_price","bid_amount"]
[1760833626813,102.1,187.19,187.15,5.3433075]
[1760833626814,102.1,187.19,187.15,9.19374176]
[1760833627010,0.67,187.18,187.15,8.68374176]
[1760833627210,0.67,187.18,187.15,24.75101005]
[1760833627631,0.67,187.18,187.15,8.68374176]
[1760833627829,0.67,187.18,187.16,16.06640781]
[1760833628028,0.67,187.18,187.17,5.34273654]
[1760833628945,102.1,187.19,187.17,8.6831708]
[1760833629128,102.1,187.19,187.18,3.34043426]
[1760833629732,102.1,187.19,187.17,24.74871823]
[1760833630749,0.67,187.23,187.18,3.85043426]
[1760833630948,102.1,187.24,187.18,3.85043426]
[1760833630949,0.67,187.22,187.18,3.34043426]
[1760833631121,0.67,187.21,187.18,16.06382693]
[1760833631445,0.67,187.2,187.17,5.34273654]
[1760833631627,0.67,187.19,187.17,21.40656347]
[1760833632149,0.67,187.21,187.17,21.40656347]
[1760833632338,0.67,187.2,187.17,21.40656347]
[1760833634249,0.67,187.2,187.17,5.34273654]
[1760833634940,0.67,187.2,187.18,16.06554743]
[1760833635946,0.66,187.21,187.18,16.06554743]
[1760833636547,0.66,187.21,187.19,5.34216571]
[1760833637142,0.66,187.21,187.19,21.40685285]
[1760833640343,3.34043426,187.22,187.19,21.40685285]
[1760833640533,0.66,187.21,187.19,21.40685285]
[1760833640852,0.66,187.2,187.19,21.40685285]
[1760833641048,0.66,187.2,187.18,5.34240117]
[1760833641245,0.66,187.19,187.18,21.4079486]
[1760833641625,0.66,187.19,187.16,18.70025421]
[1760833641833,0.66,187.18,187.17,16.06640781]
[1760833642162,3.34043426,187.21,187.17,16.06640781]
[1760833642449,0.66,187.2,187.17,16.06640781]
[1760833642656,0.66,187.2,187.17,21.4090107]
[1760833643040,3.34043426,187.22,187.17,21.4090107]
[1760833643354,0.66,187.19,187.17,21.4090107]
[1760833643754,0.66,187.18,187.17,16.06640781]
[1760833644159,0.66,187.18,187.15,5.34303604]
[1760833644375,0.66,187.17,187.15,5.34303604]
[1760833644549,0.66,187.17,187.16,16.06726829]
[1760833644966,0.66,187.17,187.16,21.4102903]
[1760833645478,0.66,187.19,187.16,21.4102903]
[1760833645648,0.66,187.18,187.16,21.4102903]
[1760833646375,102.1,187.2,187.16,21.4102903]
[1760833646677,0.66,187.19,187.16,16.06726829]
[1760833646968,0.66,187.18,187.16,16.06726829]
[1760833647562,0.66,187.18,187.16,21.41003722]
[1760833649668,4.00043426,187.17,187.12,5.34410937]
[1760833649851,102.76,187.16,187.13,16.06985028]
[1760833650050,0.66,187.15,187.13,16.06985028]
[1760833650867,0.66,187.15,187.13,21.41360777]
[1760833651244,0.66,187.14,187.13,21.41360777]
[1760833651445,0.66,187.14,187.13,16.06985028]
[1760833651650,0.66,187.14,187.11,5.4443742]
[1760833651853,3.34043426,187.15,187.12,16.06985028]
[1760833651854,0.66,187.13,187.12,16.06985028]
[1760833653078,0.66,187.13,187.11,0.1]
[1760833653464,3.34043426,187.14,187.11,16.16985028]
[1760833653657,0.66,187.13,187.11,16.16985028]
[1760833653852,3.34043426,187.14,187.11,16.16985028]
[1760833654177,0.66,187.12,187.11,16.16985028]
[1760833657668,0.66,187.12,187.11,0.1]
[1760833660986,4.00043426,187.14,187.11,0.1]
[1760833661167,0.66,187.12,187.11,0.1]
[1760833661873,0.66,187.13,187.11,0.1]
[1760833662690,0.66,187.12,187.11,0.1]
[1760833664269,102.1,187.13,187.11,0.1]
[1760833664481,102.1,187.13,187.11,5.44442778]
[1760833664674,102.1,187.13,187.11,9.29486204]
[1760833664870,102.1,187.13,187.11,25.36729513]
[1760833665072,102.77,187.13,187.11,16.17243309]
[1760833665279,102.1,187.13,187.11,16.17243309]
[1760833665484,0.67,187.12,187.11,16.17243309]
[1760833666585,102.77,187.13,187.11,21.5168826]
[1760833666884,102.1,187.13,187.11,21.5168826]
[1760833667686,102.77,187.13,187.11,21.5168826]
[1760833667900,102.1,187.13,187.11,21.5168826]
[1760833669289,102.1,187.13,187.11,5.44444951]
[1760833670276,102.77,187.13,187.11,5.44444951]
[1760833670587,102.1,187.13,187.12,3.34043426]
[1760833670884,102.77,187.13,187.11,21.51516063]
[1760833671081,0.67,187.12,187.11,0.1]
[1760833671481,102.77,187.13,187.11,0.1]
[1760833671873,0.67,187.12,187.11,0.1]
[1760833680984,4.01043426,187.12,187.11,0.1]
[1760833684084,22.88,187.09,187.07,0.1]
[1760833684274,3.34043426,187.08,187.07,0.1]
[1760833684479,4.01043426,187.08,187.07,0.1]
[1760833684881,0.67,187.08,187.07,0.1]
[1760833685086,4.01043426,187.08,187.07,0.1]
[1760833695390,26.89043426,187.08,187.07,0.1]
[1760833703931,26.22043426,187.08,187.07,0.1]
[1760833704097,3.34043426,187.08,187.07,0.71]
[1760833704716,3.34043426,187.08,187.07,0.1]
[1760833705609,26.22043426,187.08,187.07,0.1]
[1760833706212,3.34043426,187.08,187.07,0.1]
[1760833708626,4.05043426,187.08,187.07,0.1]
[1760833709015,3.34043426,187.08,187.07,0.1]
[1760833709433,22.88,187.11,187.07,0.71]
[1760833709642,3.34043426,187.09,187.07,0.1]
[1760833711431,4.05043426,187.09,187.07,0.1]
[1760833712653,4.05043426,187.08,187.07,0.1]
[1760833713436,3.34043426,187.08,187.07,0.1]
[1760833713636,4.05043426,187.09,187.07,0.1]
[1760833714132,0.71,187.09,187.07,0.1]
[1760833714343,4.05043426,187.09,187.07,0.1]
[1760833714551,3.34043426,187.09,187.07,0.1]
[1760833715158,4.05043426,187.09,187.07,0.1]
[1760833716451,3.34043426,187.09,187.07,0.1]
[1760833716659,4.05043426,187.08,187.07,0.1]
[1760833719534,26.93043426,187.08,187.07,0.1]
[1760833723160,30.50277452,187.08,187.07,0.1]
[1760833728861,29.79277452,187.08,187.07,0.1]
[1760833729062,30.49277452,187.08,187.07,0.1]
[1760833731160,7.61277452,187.08,187.07,0.1]
[1760833732452,4.04043426,187.08,187.07,0.1]
[1760833733368,26.92043426,187.08,187.07,0.1]
[1760833733563,30.49814545,187.08,187.07,0.1]
[1760833733962,7.61814545,187.08,187.07,0.1]
[1760833740154,18.49462066,187.08,187.07,0.1]
[1760833740558,22.9522514,187.08,187.07,0.1]
[1760833740780,28.29755822,187.08,187.07,0.1]
[1760833740985,26.22043426,187.06,187.05,0.1]
[1760833741169,29.79814545,187.06,187.05,0.1]
[1760833741370,30.49814545,187.06,187.05,0.1]
[1760833742895,41.37462066,187.06,187.05,0.1]
[1760833746094,46.72049898,187.06,187.05,0.1]
[1760833746277,49.80647521,187.03,187.01,0.1]
[1760833746592,22.88,186.98,186.92,0.1]
[1760833746762,3.34043426,186.97,186.92,0.1]
[1760833746960,14.93690947,186.97,186.92,0.1]
[1760833747176,18.50597445,186.97,186.92,0.1]
[1760833747474,23.85442607,186.97,186.92,0.1]
[1760833747669,17.55734373,186.96,186.92,0.1]
[1760833747864,33.75647521,186.93,186.92,0.1]
[1760833748077,44.00640871,186.93,186.92,0.1]
[1760833748400,44.72640871,186.93,186.92,0.1]
[1760833748695,10.87647521,186.92,186.88,0.1]
[1760833748866,3.34043426,186.89,186.88,0.1]
[1760833749395,37.81690947,186.89,186.88,0.1]
[1760833750086,3.34043426,186.89,186.88,0.1]
[1760833750286,26.22043426,186.89,186.88,0.1]
[1760833755403,26.90043426,186.89,186.88,0.1]
[1760833756502,37.77690947,186.89,186.88,0.1]
[1760833757181,34.43647521,186.89,186.88,0.1]
[1760833757381,37.77690947,186.89,186.88,0.1]
[1760833760996,37.09690947,186.89,186.88,0.1]
[1760833761202,10.87647521,186.92,186.88,0.1]
[1760833761389,26.22043426,186.89,186.88,0.1]
[1760833764797,26.90043426,186.89,186.88,0.1]
[1760833765008,26.22043426,186.89,186.88,0.1]
[1760833766799,26.90043426,186.89,186.88,0.1]
[1760833768686,26.22043426,186.89,186.88,0.1]
[1760833769303,26.22043426,186.89,186.88,0.71]
[1760833769500,3.34043426,186.89,186.88,0.71]
[1760833770310,3.34043426,186.89,186.88,6.67209999]
[1760833770819,3.34043426,186.89,186.88,0.1]
[1760833772301,3.34043426,186.89,186.88,0.71]
[1760833772517,3.34043426,186.89,186.88,16.80398889]
[1760833773719,22.88,186.93,186.88,16.80398889]
[1760833773720,3.34043426,186.9,186.88,16.80398889]
[1760833773928,3.34043426,186.9,186.89,0.61]
[1760833774302,124.98,186.93,186.89,0.61]
[1760833774503,3.34043426,186.91,186.89,0.61]
[1760833774703,3.34043426,186.91,186.89,16.7022623]
[1760833775003,3.34043426,186.91,186.89,0.61]
[1760833775411,124.98,186.93,186.9,16.0922623]
[1760833775722,125.66,186.93,186.89,0.61]
[1760833776019,0.68,186.92,186.89,16.0922623]
[1760833776513,3.34043426,186.9,186.89,16.0922623]
[1760833777425,3.34043426,186.9,186.89,16.7022623]
[1760833779524,3.34043426,186.91,186.89,16.0922623]
[1760833779729,3.34043426,186.9,186.89,16.0922623]
[1760833781328,3.34043426,186.91,186.89,16.7022623]
[1760833781626,3.34043426,186.91,186.89,0.61]
[1760833782010,3.34043426,186.91,186.9,16.0922623]
[1760833782212,3.34043426,186.91,186.89,0.61]
[1760833782428,3.34043426,186.91,186.89,16.7022623]
[1760833783327,4.02043426,186.91,186.89,16.0922623]
[1760833783538,3.34043426,186.9,186.89,16.0922623]
[1760833789622,3.34043426,186.9,186.88,6.0610115]
[1760833790016,3.34043426,186.9,186.88,22.1532738]
[1760833791446,3.34043426,186.91,186.88,22.1532738]
[1760833791630,102.1,186.9,186.89,0.61]
[1760833792123,102.1,186.9,186.89,16.70139914]
[1760833792754,102.1,186.9,186.89,21.44214021]
[1760833793422,102.1,186.9,186.89,22.05214021]
[1760833793846,102.1,186.9,186.89,21.44214021]
[1760833794543,106.10043426,186.9,186.89,16.09139914]
[1760833794735,106.10043426,186.9,186.75,1.99999998]
[1760833794736,22.88,186.86,186.79,0.61]
[1760833795042,22.88,186.86,186.79,5.96356548]
[1760833795043,3.34043426,186.83,186.79,5.96356548]
[1760833795248,3.34043426,186.83,186.8,0.66]
[1760833795445,3.34043426,186.82,186.79,5.35356548]
[1760833795629,3.34043426,186.82,186.79,6.01356548]
[1760833799448,26.22043426,186.86,186.8,4.00043426]
[1760833799650,26.22043426,186.86,186.81,4.00043426]
[1760833799828,22.88,186.86,186.82,0.66]
[1760833800147,102.1,186.89,186.83,3.34043426]
[1760833800148,128.32043426,186.89,186.83,3.34043426]
[1760833800342,128.98043426,186.89,186.84,0.66]
[1760833800650,4.00043426,186.88,186.84,6.01211733]
[1760833801561,124.98,186.89,186.84,6.01211733]
[1760833801562,102.1,186.89,186.85,0.66]
[1760833801723,102.1,186.89,186.87,3.34043426]
[1760833801928,0.66,186.89,186.85,16.09139914]
[1760833802148,4.00043426,186.89,186.85,16.09139914]
[1760833802651,4.00043426,186.89,186.86,5.35160012]
[1760833802854,0.66,186.88,186.85,21.44323124]
[1760833803028,0.66,186.88,186.85,5.3518321]
[1760833803237,0.66,186.88,186.85,8.9211945]
[1760833804439,0.66,186.87,186.85,8.9211945]
[1760833805149,3.34043426,186.89,186.85,3.5693624]
[1760833805349,4.00043426,186.86,186.8,16.72306231]
[1760833805534,4.00043426,186.85,186.82,5.35211909]
[1760833805734,0.66,186.84,186.82,5.35211909]
[1760833805935,3.34043426,186.85,186.82,5.35211909]
[1760833805936,4.00043426,186.85,186.82,5.35211909]
[1760833807142,4.00043426,186.85,186.82,10.70481319]
[1760833807850,4.01043426,186.87,186.82,14.04524745]
[1760833808045,4.01043426,186.87,186.83,0.71]
[1760833808242,3.34043426,186.85,186.82,5.35211909]
[1760833808444,18.67848597,186.93,186.74,0.71]
[1760833808445,22.88,186.81,186.74,0.71]
[1760833808650,4.01043426,186.8,186.77,5.88838926]
[1760833808949,0.67,186.8,186.77,5.88838926]
[1760833809151,4.01043426,186.82,186.77,6.59838926]
[1760833809345,22.88,186.81,186.77,9.93882352]
[1760833809550,22.88,186.81,186.78,0.71]
[1760833809947,102.1,186.84,186.79,0.71]
[1760833809948,3.34043426,186.83,186.79,0.71]
[1760833810250,4.01043426,186.83,186.77,9.22882352]
[1760833810449,4.01043426,186.83,186.78,5.35389227]
[1760833810650,4.01043426,186.83,186.78,6.06389227]
[1760833811058,4.01043426,186.83,186.79,0.71]
[1760833811253,4.01043426,186.83,186.78,8.69432653]
[1760833811551,4.01043426,186.83,186.78,6.06389227]
[1760833812135,4.01043426,186.83,186.79,16.09917089]
[1760833812655,0.67,186.83,186.8,5.35331905]
[1760833812842,0.67,186.82,186.8,5.35331905]
[1760833813157,0.67,186.81,186.8,5.35331905]
[1760833813455,0.67,186.81,186.78,5.353646]
[1760833813652,4.01043426,186.81,186.79,16.10003488]
[1760833814632,0.7,186.8,186.79,16.10003488]
[1760833814839,0.7,186.8,186.76,5.35426339]
[1760833815139,0.7,186.8,186.77,16.10003488]
[1760833815330,0.7,186.79,186.77,16.10003488]
[1760833815738,4.04043426,186.81,186.77,16.10003488]
[1760833815945,0.7,186.8,186.77,16.10003488]
[1760833816361,0.7,186.8,186.77,21.4541326]
[1760833816860,0.7,186.79,186.77,21.4541326]
[1760833818262,3.34043426,186.8,186.77,16.10003488]
[1760833818263,102.1,186.78,186.77,16.10003488]
[1760833818458,102.8,186.78,186.75,5.35447685]
[1760833818662,102.8,186.78,186.76,16.10003488]
[1760833819862,102.1,186.78,186.76,16.10003488]
[1760833820056,26.22043426,186.84,186.72,0.53556126]
[1760833820057,106.14043426,186.77,186.73,5.35532587]
[1760833820274,4.04043426,186.76,186.73,5.35532587]
[1760833820446,0.7,186.75,186.74,16.10522077]
[1760833821365,0.7,186.75,186.72,5.3555901]
[1760833821672,0.7,186.75,186.73,16.10522077]
[1760833821874,3.34043426,186.75,186.72,5.3555901]
[1760833822062,102.1,186.77,186.73,0.67]
[1760833822370,102.1,186.77,186.74,0.67]
[1760833822669,102.1,186.77,186.75,0.67]
[1760833822855,102.1,186.77,186.75,4.01043426]
[1760833823061,102.1,186.77,186.75,20.11306167]
[1760833823260,102.1,186.77,186.75,16.77262741]
[1760833823459,102.1,186.77,186.75,20.11306167]
[1760833824677,102.1,186.77,186.76,5.35446562]
[1760833825076,102.1,186.77,186.76,21.45622876]
[1760833830567,102.8,186.77,186.76,21.45622876]
[1760833835579,102.1,186.77,186.76,25.46666302]
[1760833836580,102.1,186.77,186.76,21.45622876]
[1760833838397,102.8,186.77,186.76,21.45622876]
[1760833838774,106.14043426,186.77,186.73,13.38766103]
[1760833838987,0.7,186.76,186.73,13.38766103]
[1760833839193,105.44043426,186.77,186.75,16.10349177]
[1760833839680,0.7,186.76,186.75,16.10349177]
[1760833840379,0.7,186.76,186.74,5.35499954]
[1760833840577,0.7,186.75,186.74,5.35499954]
[1760833840782,0.7,186.75,186.74,21.45849131]
[1760833841391,4.04043426,186.75,186.74,16.10349177]
[1760833841695,4.04043426,186.75,186.71,21.45932499]
[1760833841902,3.34043426,186.73,186.71,16.10349177]
[1760833842094,0.7,186.72,186.71,16.10349177]
[1760833842768,4.04043426,186.72,186.71,16.10349177]
[1760833842974,4.04043426,186.72,186.7,0.1]
[1760833843196,3.34043426,186.71,186.7,0.1]
[1760833843584,4.01043426,186.71,186.7,0.1]
[1760833844980,4.51043426,186.71,186.7,0.1]
[1760833847879,1.17,186.71,186.7,0.1]
[1760833848279,4.51043426,186.71,186.7,0.1]
[1760833849889,0.5,186.71,186.7,0.1]
[1760833850082,0.5,186.71,186.7,6.15618639]
[1760833850288,0.5,186.71,186.7,5.45618639]
[1760833850796,0.5,186.71,186.7,6.15618639]
[1760833851293,0.5,186.71,186.7,9.49662065]
[1760833855081,0.5,186.71,186.7,25.60097687]
[1760833857691,0.5,186.71,186.7,36.47745208]
[1760833858806,102.1,186.78,186.7,49.86791806]
[1760833859007,102.77,186.77,186.74,3.34043426]
[1760833859703,102.1,186.77,186.74,3.34043426]
[1760833859891,102.77,186.77,186.74,3.34043426]
[1760833860098,102.77,186.77,186.75,5.35475234]
[1760833860290,0.67,186.76,186.75,5.35475234]
[1760833862004,0.67,186.76,186.74,5.35503909]
[1760833863013,0.67,186.75,186.74,5.35503909]
[1760833863218,0.67,186.75,186.73,13.38796205]
[1760833863396,0.67,186.76,186.73,13.38796205]
[1760833864514,0.67,186.76,186.73,18.74328792]
[1760833864706,0.67,186.76,186.75,22.88]
[1760833865210,102.77,186.77,186.75,22.88]
[1760833865590,0.67,186.76,186.75,22.88]
[1760833866515,0.67,186.76,186.75,28.23475234]
[1760833867592,0.67,186.76,186.74,5.35503909]
[1760833868116,102.1,186.77,186.74,5.35503909]
[1760833868308,102.77,186.77,186.74,5.35503909]
[1760833868687,102.1,186.77,186.74,5.35503909]
[1760833869023,0.67,186.76,186.74,5.35503909]
[1760833869307,102.1,186.77,186.74,8.69547335]
[1760833869486,102.77,186.77,186.74,8.69547335]
[1760833870622,0.67,186.76,186.74,8.69547335]
[1760833872210,102.77,186.77,186.74,8.69547335]
[1760833873312,0.67,186.76,186.74,8.69547335]
[1760833874092,102.1,186.77,186.74,22.08307107]
[1760833874292,0.7,186.76,186.74,22.08307107]
[1760833874887,102.1,186.77,186.74,22.08307107]
[1760833875212,0.7,186.76,186.74,22.08307107]
[1760833875394,0.7,186.76,186.74,18.74263681]
[1760833875911,102.1,186.77,186.74,22.08307107]
[1760833876108,102.1,186.77,186.75,4.04043426]
[1760833876413,0.7,186.76,186.74,18.74263681]
[1760833879818,0.7,186.76,186.74,22.08307107]
[1760833880322,102.8,186.77,186.74,22.08307107]
[1760833882714,0.7,186.76,186.74,18.74263681]
[1760833883027,0.7,186.75,186.74,18.74263681]
[1760833883229,102.1,186.77,186.74,18.74263681]
[1760833883417,0.7,186.76,186.74,18.74263681]
[1760833886529,102.1,186.77,186.74,22.78307107]
[1760833887020,102.8,186.77,186.74,22.08307107]
[1760833888131,0.7,186.77,186.74,22.08307107]
[1760833888331,0.7,186.77,186.74,18.74263681]
[1760833889007,0.7,186.77,186.74,22.08307107]
[1760833889719,0.7,186.77,186.74,18.74263681]
[1760833890021,0.7,186.77,186.74,22.30932726]
[1760833890717,0.7,186.76,186.74,22.30932726]
[1760833891307,3.56737157,186.79,186.74,22.30932726]
[1760833891506,0.7,186.78,186.74,22.30932726]
[1760833891727,0.7,186.77,186.74,22.30932726]
[1760833892233,0.7,186.77,186.74,22.84483116]
[1760833892621,0.7,186.76,186.74,22.84483116]
[1760833893124,0.7,186.75,186.74,8.92172954]
[1760833893314,0.7,186.75,186.72,5.35533593]
[1760833893516,0.7,186.74,186.72,5.35533593]
[1760833893726,3.34043426,186.76,186.72,5.35533593]
[1760833894026,0.7,186.74,186.72,5.35533593]
[1760833894530,0.7,186.74,186.71,18.74559177]
[1760833894738,0.7,186.73,186.71,18.74559177]
[1760833896830,105.44043426,186.75,186.71,5.35589952]
[1760833897133,22.88,186.77,186.7,0.1]
[1760833897134,0.7,186.72,186.7,0.1]
[1760833897345,3.34043426,186.71,186.7,0.1]
[1760833897517,7.61119041,186.71,186.7,0.1]
[1760833897714,3.34043426,186.7,186.69,0.1]
[1760833897935,6.91119041,186.7,186.69,0.1]
[1760833898117,7.61119041,186.7,186.69,0.1]
[1760833898315,4.04043426,186.7,186.69,0.1]
[1760833899618,0.7,186.7,186.69,0.1]
[1760833900020,0.7,186.72,186.69,5.45647329]
[1760833900220,26.22043426,186.73,186.69,5.45647329]
[1760833900409,4.04043426,186.71,186.69,0.1]
[1760833902020,3.34043426,186.7,186.69,0.1]
[1760833902626,4.04043426,186.7,186.69,0.1]
[1760833903038,0.7,186.7,186.69,0.1]
[1760833903341,4.04043426,186.7,186.69,0.1]
[1760833905843,0.7,186.7,186.69,0.1]
[1760833907334,4.04043426,186.7,186.69,0.1]
[1760833908636,0.7,186.7,186.69,0.1]
[1760833912050,4.04043426,186.7,186.69,0.1]
[1760833915144,3.34043426,186.71,186.69,0.1]
[1760833915524,0.67,186.71,186.69,0.1]
[1760833915926,0.67,186.75,186.7,0.69]
[1760833916130,0.67,186.74,186.7,0.69]
[1760833916630,4.01043426,186.74,186.71,3.5566991]
[1760833916931,0.67,186.73,186.71,3.5566991]
[1760833917548,3.34043426,186.74,186.69,5.45645811]
[1760833917758,4.01043426,186.72,186.69,0.1]
[1760833917930,3.34043426,186.71,186.69,3.65729719]
[1760833918134,0.67,186.7,186.69,0.1]
[1760833919323,4.01043426,186.72,186.69,0.1]
[1760833919543,0.67,186.75,186.69,6.1464334]
[1760833919758,102.1,186.74,186.7,8.91403251]
[1760833920044,102.77,186.74,186.7,8.91403251]
[1760833920355,0.67,186.73,186.7,8.91403251]
[1760833920557,0.67,186.72,186.69,0.1]
[1760833920739,4.01043426,186.72,186.69,0.1]
[1760833920941,3.34043426,186.71,186.69,0.1]
[1760833921346,0.67,186.7,186.69,0.1]
[1760833923071,4.01043426,186.7,186.69,0.1]
[1760833928973,26.89043426,186.7,186.69,0.1]
[1760833929263,41.32531973,186.7,186.69,0.1]
[1760833931867,41.32531973,186.7,186.63,0.1]
[1760833931868,3.34043426,186.64,186.63,0.1]
[1760833932260,4.02043426,186.64,186.63,0.1]
[1760833933875,26.90043426,186.64,186.63,0.1]
[1760833934070,37.77690947,186.64,186.63,0.1]
[1760833935291,34.43647521,186.64,186.63,0.1]
[1760833935459,46.69255787,186.64,186.63,0.1]
[1760833936074,46.69255787,186.64,186.55,13.17208585]
[1760833936251,22.88,186.61,186.55,13.17208585]
[1760833936456,3.34043426,186.59,186.55,13.87208585]
[1760833936675,4.00043426,186.59,186.55,13.17208585]
[1760833936857,3.34043426,186.59,186.55,13.87208585]
[1760833937052,3.34043426,186.58,186.55,13.17208585]
[1760833937252,4.00043426,186.57,186.55,13.17208585]
[1760833937448,4.00043426,186.56,186.55,13.17208585]
[1760833938276,3.34043426,186.56,186.55,13.17208585]
[1760833938576,4.00043426,186.56,186.55,13.17208585]
[1760833938952,3.34043426,186.57,186.55,13.87208585]
[1760833939373,3.34043426,186.57,186.55,13.17208585]
[1760833940153,22.88,186.59,186.56,0.7]
[1760833940373,3.34043426,186.6,186.57,0.7]
[1760833940561,3.34043426,186.59,186.55,13.17208585]
[1760833940766,3.34043426,186.56,186.55,13.17208585]
[1760833940962,4.00043426,186.56,186.55,13.17208585]
[1760833944361,3.34043426,186.56,186.55,13.17208585]
[1760833945278,4.00043426,186.56,186.55,13.17208585]
[1760833945579,23.54,186.56,186.55,13.17208585]
[1760833945876,26.88043426,186.56,186.55,13.17208585]
[1760833947565,37.75690947,186.56,186.55,13.17208585]
[1760833950781,3.34043426,186.56,186.55,13.17208585]
[1760833951201,26.22043426,186.56,186.55,13.17208585]
[1760833951697,26.88043426,186.56,186.55,13.17208585]
[1760833952495,23.54,186.56,186.55,13.17208585]
[1760833952800,26.88043426,186.56,186.55,13.17208585]
[1760833953004,26.22043426,186.56,186.55,13.17208585]
[1760833953502,3.34043426,186.56,186.55,13.17208585]
[1760833953999,22.88,186.57,186.55,13.87208585]
[1760833954190,3.34043426,186.56,186.55,13.87208585]
[1760833954495,22.88,186.57,186.55,13.17208585]
[1760833955001,22.88,186.57,186.55,13.87208585]
[1760833955399,0.66,186.61,186.56,0.7]
[1760833955586,0.66,186.61,186.57,0.7]
[1760833955784,3.34043426,186.59,186.57,0.7]
[1760833955982,0.66,186.61,186.57,0.7]
[1760833956187,3.34043426,186.59,186.55,19.23252792]
[1760833956402,3.34043426,186.59,186.56,0.7]
[1760833956593,3.34043426,186.59,186.57,0.7]
[1760833956801,3.34043426,186.6,186.56,5.36015012]
[1760833957103,3.34043426,186.6,186.58,0.7]
[1760833957305,105.44043426,186.6,186.58,0.7]
[1760833957507,102.1,186.6,186.59,0.7]
[1760833960721,102.1,186.6,186.59,6.05934401]
[1760833961617,102.1,186.6,186.59,0.7]
[1760833963612,102.1,186.6,186.58,5.35942972]
[1760833963787,102.1,186.6,186.58,0.68]
[1760833964108,102.1,186.6,186.59,0.68]
[1760833964513,102.1,186.6,186.57,22.15898468]
[1760833964717,102.1,186.6,186.58,0.68]
[1760833965805,102.1,186.6,186.59,6.03934401]
[1760833966004,102.1,186.6,186.59,9.37977827]
[1760833966309,102.1,186.6,186.59,22.1566782]
[1760833966488,102.1,186.6,186.59,5.35934401]
[1760833967095,102.77,186.6,186.55,16.51252011]
[1760833967295,102.77,186.6,186.56,0.68]
[1760833967494,102.1,186.6,186.57,16.11733419]
[1760833967705,102.1,186.6,186.57,16.79733419]
[1760833968014,102.1,186.6,186.57,21.47707073]
[1760833968416,102.1,186.6,186.57,22.15707073]
[1760833968598,102.1,186.6,186.57,21.47707073]
[1760833970221,102.1,186.6,186.57,5.35973654]
[1760833970416,102.77,186.6,186.57,5.35973654]
[1760833970916,102.1,186.59,186.57,5.35973654]
[1760833971720,0.67,186.58,186.57,5.35973654]
[1760833972707,102.1,186.59,186.55,42.69210391]
[1760833972708,102.1,186.59,186.56,5.36020583]
[1760833972901,102.77,186.59,186.56,5.36020583]
[1760833973423,3.34043426,186.57,186.55,13.17208585]
[1760833973719,4.01043426,186.56,186.55,13.17208585]
[1760833975398,26.89043426,186.56,186.55,13.17208585]
[1760833975902,22.88,186.56,186.55,13.17208585]
[1760833977702,0.67,186.57,186.55,13.17208585]
[1760833977908,0.67,186.57,186.55,18.53257901]
[1760833978401,0.67,186.57,186.55,13.17208585]
[1760833978598,0.67,186.56,186.55,13.17208585]
[1760833980806,4.01043426,186.56,186.55,13.17208585]
[1760833981331,0.67,186.56,186.55,13.17208585]
[1760833982229,3.34043426,186.58,186.55,18.53257901]
[1760833982441,26.22043426,186.59,186.55,18.53257901]
[1760833982612,26.22043426,186.59,186.55,19.21257901]
[1760833982810,0.67,186.58,186.55,18.53257901]
[1760833983010,26.89043426,186.59,186.55,18.53257901]
[1760833983324,0.67,186.58,186.55,18.53257901]
[1760833984929,4.01043426,186.58,186.55,18.53257901]
[1760833985227,0.67,186.57,186.55,13.17208585]
[1760833985524,3.34043426,186.58,186.55,13.17208585]
[1760833985733,4.01043426,186.58,186.55,13.17208585]
[1760833986915,26.22043426,186.59,186.55,18.53249993]